[Event "*** Titled Tuesday Blitz"]
[Site "Chess.com"]
[Date "2020.04.14"]
[Round "9"]
[White "rasmussvane"]
[Black "Jagerrmeisterr"]
[Result "1-0"]
[WhiteElo "2877"]
[BlackElo "2692"]
[TimeControl "180+1"]
[EndTime "11:44:36 PDT"]
[Termination "rasmussvane won by resignation"]

1. Nf3 {[%clk 0:03:00.9]} 1... Nf6 {[%clk 0:02:59.6]} 2. g3 {[%clk 0:03:01.4]}
2... b6 {[%clk 0:02:59.8]} 3. Bg2 {[%clk 0:03:01.7]} 3... Bb7 {[%clk 0:03:00.3]}
4. O-O {[%clk 0:03:02.3]} 4... g6 {[%clk 0:03:00.8]} 5. d4 {[%clk 0:03:00.9]}
5... Bg7 {[%clk 0:03:01.1]} 6. c4 {[%clk 0:03:01.4]} 6... O-O {[%clk 0:03:01.5]}
7. Re1 {[%clk 0:03:02]} 7... d6 {[%clk 0:03:01.4]} 8. Qc2 {[%clk 0:03:00.7]}
8... Be4 {[%clk 0:03:00.8]} 9. Qd2 {[%clk 0:03:01]} 9... Nbd7 {[%clk 0:03:01]}
10. Nc3 {[%clk 0:03:01]} 10... Bb7 {[%clk 0:03:01.5]} 11. e4 {[%clk 0:03:01.5]}
11... e5 {[%clk 0:03:02]} 12. Qc2 {[%clk 0:03:02]} 12... exd4 {[%clk 0:02:59.7]}
13. Nxd4 {[%clk 0:03:02.9]} 13... Re8 {[%clk 0:03:00.3]} 14. Bf4 {[%clk
0:02:49.1]} 14... Nc5 {[%clk 0:02:50.8]} 15. Rad1 {[%clk 0:02:47.1]} 15... Qc8
{[%clk 0:02:48.2]} 16. h3 {[%clk 0:02:41.4]} 16... a5 {[%clk 0:02:46.9]} 17. b3
{[%clk 0:02:41.1]} 17... Ra6 {[%clk 0:02:30.3]} 18. Ndb5 {[%clk 0:02:39.1]}
18... Ne6 {[%clk 0:02:26.8]} 19. Bxd6 {[%clk 0:02:34.2]} 19... cxd6 {[%clk
0:02:15.5]} 20. Nxd6 {[%clk 0:02:35.1]} 20... Qc7 {[%clk 0:02:15.3]} 21. Nxb7
{[%clk 0:02:27.3]} 21... Qxb7 {[%clk 0:02:00]} 22. e5 {[%clk 0:02:26.5]} 22...
Qc8 {[%clk 0:02:00.2]} 23. exf6 {[%clk 0:02:26.2]} 23... Bxf6 {[%clk 0:02:00.8]}
24. Nb5 {[%clk 0:02:19.4]} 24... Be7 {[%clk 0:01:50.4]} 25. Qe4 {[%clk
0:01:30.7]} 25... Bb4 {[%clk 0:01:36]} 26. Re3 {[%clk 0:01:22.6]} 26... Bc5
{[%clk 0:01:32]} 27. Red3 {[%clk 0:01:15.7]} 27... a4 {[%clk 0:01:25.2]} 28. Qb7
{[%clk 0:00:57.5]} 28... Ra5 {[%clk 0:01:23.6]} 29. Qxc8 {[%clk 0:00:50.7]}
29... Rxc8 {[%clk 0:01:23.8]} 30. Bd5 {[%clk 0:00:50.7]} 30... axb3 {[%clk
0:01:22.6]} 31. axb3 {[%clk 0:00:51.2]} 31... Ra2 {[%clk 0:01:19.6]} 32. R1d2
{[%clk 0:00:50.5]} 32... Rxd2 {[%clk 0:01:17]} 33. Rxd2 {[%clk 0:00:51.4]} 33...
Rd8 {[%clk 0:01:08.7]} 34. Kg2 {[%clk 0:00:45.7]} 34... Kg7 {[%clk 0:01:06.8]}
35. Re2 {[%clk 0:00:37.2]} 35... Kf6 {[%clk 0:00:57.7]} 36. Bxe6 {[%clk
0:00:19.2]} 36... fxe6 {[%clk 0:00:57.8]} 37. Nc7 {[%clk 0:00:19.7]} 37... Rd3
{[%clk 0:00:55.5]} 38. Rxe6+ {[%clk 0:00:18.8]} 38... Kf7 {[%clk 0:00:55.8]} 39.
Re2 {[%clk 0:00:07.6]} 39... Rxb3 {[%clk 0:00:55.8]} 40. Nd5 {[%clk 0:00:08]}
40... Rb1 {[%clk 0:00:54.3]} 41. Rc2 {[%clk 0:00:08]} 41... Rd1 {[%clk 0:00:53]}
42. Nc3 {[%clk 0:00:04.4]} 42... Rd4 {[%clk 0:00:50.9]} 43. Ne2 {[%clk
0:00:03.9]} 43... Rd3 {[%clk 0:00:49.4]} 44. Nf4 {[%clk 0:00:04.3]} 44... Rd4
{[%clk 0:00:48.6]} 45. Kf3 {[%clk 0:00:03.8]} 45... Rd1 {[%clk 0:00:46.7]} 46.
Ke2 {[%clk 0:00:03.1]} 46... Rh1 {[%clk 0:00:45]} 47. h4 {[%clk 0:00:03.5]}
47... h6 {[%clk 0:00:44.5]} 48. Nd3 {[%clk 0:00:03.9]} 48... Bd4 {[%clk
0:00:42.9]} 49. Rd2 {[%clk 0:00:03.6]} 49... Ra1 {[%clk 0:00:39]} 50. Rc2 {[%clk
0:00:04]} 50... g5 {[%clk 0:00:38.5]} 51. hxg5 {[%clk 0:00:03.5]} 51... hxg5
{[%clk 0:00:39.4]} 52. Kf3 {[%clk 0:00:04.1]} 52... Kg6 {[%clk 0:00:38.8]} 53.
Ke4 {[%clk 0:00:04.6]} 53... Bf6 {[%clk 0:00:37.6]} 54. Kd5 {[%clk 0:00:04.4]}
54... Rd1 {[%clk 0:00:37.2]} 55. Ke4 {[%clk 0:00:02.7]} 55... Be7 {[%clk
0:00:34.5]} 56. Rb2 {[%clk 0:00:02.4]} 56... Bd8 {[%clk 0:00:34]} 57. Ke3 {[%clk
0:00:01.4]} 57... Kf5 {[%clk 0:00:31.6]} 58. Ke2 {[%clk 0:00:01.9]} 58... Ra1
{[%clk 0:00:31.5]} 59. Rb5+ {[%clk 0:00:02.2]} 59... Kg4 {[%clk 0:00:29.9]} 60.
Rd5 {[%clk 0:00:02.2]} 60... Be7 {[%clk 0:00:27.9]} 61. Re5 {[%clk 0:00:02.5]}
61... Ra2+ {[%clk 0:00:28.2]} 62. Ke3 {[%clk 0:00:02.6]} 62... Bf6 {[%clk
0:00:26.4]} 63. Re4+ {[%clk 0:00:03]} 63... Kf5 {[%clk 0:00:25.8]} 64. g4+
{[%clk 0:00:03.4]} 64... Kg6 {[%clk 0:00:26.3]} 65. Ne5+ {[%clk 0:00:04]} 65...
Kg7 {[%clk 0:00:24.4]} 66. Nd7 {[%clk 0:00:04.3]} 66... Ra3+ {[%clk 0:00:22.9]}
67. Ke2 {[%clk 0:00:04.4]} 67... Ra2+ {[%clk 0:00:22.7]} 68. Kf3 {[%clk
0:00:04.9]} 68... Rb2 {[%clk 0:00:20.8]} 69. Re6 {[%clk 0:00:04.3]} 69... Bd4
{[%clk 0:00:20.7]} 70. Ke4 {[%clk 0:00:03.5]} 70... Bxf2 {[%clk 0:00:20.9]} 71.
Kf5 {[%clk 0:00:04]} 71... Bd4 {[%clk 0:00:13.6]} 72. Re7+ {[%clk 0:00:03.4]}
72... Kg8 {[%clk 0:00:11.4]} 73. Kg6 {[%clk 0:00:04.3]} 73... Bc5 {[%clk
0:00:01.8]} 74. Re8+ {[%clk 0:00:04.5]} 1-0

[Event "*** Titled Tuesday Blitz"]
[Site "Chess.com"]
[Date "2020.04.14"]
[Round "9"]
[White "GM_RobertoMogranzini"]
[Black "Chessialist"]
[Result "1/2-1/2"]
[WhiteElo "2532"]
[BlackElo "2644"]
[TimeControl "180+1"]
[EndTime "11:44:37 PDT"]
[Termination "Game drawn by repetition"]

1. e4 {[%clk 0:02:35.6]} 1... c5 {[%clk 0:02:55.6]} 2. Nf3 {[%clk 0:02:35.4]}
2... e6 {[%clk 0:02:55.3]} 3. Nc3 {[%clk 0:02:36.3]} 3... a6 {[%clk 0:02:55.1]}
4. a4 {[%clk 0:02:35.4]} 4... Qc7 {[%clk 0:02:54.5]} 5. g3 {[%clk 0:02:35.8]}
5... Nc6 {[%clk 0:02:53.8]} 6. Bg2 {[%clk 0:02:36.7]} 6... g6 {[%clk 0:02:53.7]}
7. d4 {[%clk 0:02:34]} 7... cxd4 {[%clk 0:02:52.9]} 8. Nxd4 {[%clk 0:02:34.9]}
8... Bg7 {[%clk 0:02:53.6]} 9. Nde2 {[%clk 0:02:34.9]} 9... Nge7 {[%clk
0:02:53.3]} 10. O-O {[%clk 0:02:35.5]} 10... d6 {[%clk 0:02:52.7]} 11. Bf4
{[%clk 0:02:20.7]} 11... Ne5 {[%clk 0:02:47.2]} 12. a5 {[%clk 0:02:19.9]} 12...
O-O {[%clk 0:02:42.2]} 13. Nd4 {[%clk 0:02:14.9]} 13... Bd7 {[%clk 0:02:41.3]}
14. Nb3 {[%clk 0:02:11.7]} 14... Rac8 {[%clk 0:02:34.8]} 15. Qe2 {[%clk
0:02:09.2]} 15... Rfd8 {[%clk 0:02:33.7]} 16. Rfd1 {[%clk 0:02:04.8]} 16... Bc6
{[%clk 0:02:29.6]} 17. Bg5 {[%clk 0:02:04.4]} 17... h6 {[%clk 0:02:28.4]} 18.
Be3 {[%clk 0:02:01.8]} 18... Qb8 {[%clk 0:02:20.3]} 19. Bb6 {[%clk 0:02:00.8]}
19... Re8 {[%clk 0:02:19.3]} 20. Bd4 {[%clk 0:01:58.4]} 20... Bd7 {[%clk
0:01:59.5]} 21. Nd2 {[%clk 0:01:55.6]} 21... N7c6 {[%clk 0:01:52.4]} 22. Bb6
{[%clk 0:01:55.1]} 22... Nb4 {[%clk 0:01:50.7]} 23. f4 {[%clk 0:01:50.6]} 23...
Nec6 {[%clk 0:01:46.7]} 24. Nb3 {[%clk 0:01:49.3]} 24... Na7 {[%clk 0:01:41.6]}
25. Bd4 {[%clk 0:01:43.6]} 25... Nb5 {[%clk 0:01:34.9]} 26. Bxg7 {[%clk
0:01:42.4]} 26... Kxg7 {[%clk 0:01:35.8]} 27. Qf2 {[%clk 0:01:29.3]} 27... Qc7
{[%clk 0:01:11.2]} 28. Nxb5 {[%clk 0:01:28.5]} 28... Bxb5 {[%clk 0:00:53.9]} 29.
Qd4+ {[%clk 0:01:27.5]} 29... e5 {[%clk 0:00:54.6]} 30. Qxb4 {[%clk 0:01:27.6]}
30... Qxc2 {[%clk 0:00:55.3]} 31. Rd2 {[%clk 0:01:20.8]} 31... Qc7 {[%clk
0:00:46.6]} 32. Qxd6 {[%clk 0:01:14]} 32... Qc4 {[%clk 0:00:44.2]} 33. Qd5
{[%clk 0:00:59.4]} 33... Qb4 {[%clk 0:00:37.3]} 34. Rad1 {[%clk 0:00:27]} 34...
Rcd8 {[%clk 0:00:36.8]} 35. Qc5 {[%clk 0:00:26.6]} 35... Rxd2 {[%clk 0:00:31.6]}
36. Qxb4 {[%clk 0:00:22.8]} 36... Rxd1+ {[%clk 0:00:31.7]} 37. Kf2 {[%clk
0:00:23]} 37... exf4 {[%clk 0:00:31.6]} 38. gxf4 {[%clk 0:00:21.8]} 38... Rc8
{[%clk 0:00:31.8]} 39. Nc5 {[%clk 0:00:19.8]} 39... Rcd8 {[%clk 0:00:27.5]} 40.
Qc3+ {[%clk 0:00:19.8]} 40... Kg8 {[%clk 0:00:27.3]} 41. b4 {[%clk 0:00:20.7]}
41... R8d2+ {[%clk 0:00:26.7]} 42. Kg3 {[%clk 0:00:20.5]} 42... h5 {[%clk
0:00:20.4]} 43. h4 {[%clk 0:00:19.2]} 43... Rd4 {[%clk 0:00:17]} 44. f5 {[%clk
0:00:18.4]} 44... gxf5 {[%clk 0:00:16.1]} 45. Bf3 {[%clk 0:00:18.2]} 45... fxe4
{[%clk 0:00:15.7]} 46. Bxd1 {[%clk 0:00:17.8]} 46... Rxd1 {[%clk 0:00:15]} 47.
Nxe4 {[%clk 0:00:17.9]} 47... Rd3+ {[%clk 0:00:15.3]} 48. Qxd3 {[%clk
0:00:18.3]} 48... Bxd3 {[%clk 0:00:16.2]} 49. Nf6+ {[%clk 0:00:18.5]} 49... Kg7
{[%clk 0:00:16.6]} 50. Nxh5+ {[%clk 0:00:19.4]} 50... Kh6 {[%clk 0:00:17.1]} 51.
Nf4 {[%clk 0:00:20.3]} 51... Bb5 {[%clk 0:00:17.7]} 52. Nd5 {[%clk 0:00:20.5]}
52... Bc6 {[%clk 0:00:17.7]} 53. Ne7 {[%clk 0:00:20.5]} 53... Kg7 {[%clk
0:00:17.6]} 54. Nf5+ {[%clk 0:00:20.7]} 54... Kf6 {[%clk 0:00:17.8]} 55. Nd6
{[%clk 0:00:21.1]} 55... Ke6 {[%clk 0:00:17]} 56. Nc4 {[%clk 0:00:20.4]} 56...
f5 {[%clk 0:00:17.5]} 57. Kf4 {[%clk 0:00:20.4]} 57... Be4 {[%clk 0:00:16.1]}
58. Ne3 {[%clk 0:00:20.9]} 58... Kf6 {[%clk 0:00:15.2]} 59. h5 {[%clk
0:00:20.9]} 59... Bd3 {[%clk 0:00:15]} 60. h6 {[%clk 0:00:21]} 60... Kg6 {[%clk
0:00:15.4]} 61. h7 {[%clk 0:00:21.5]} 61... Kxh7 {[%clk 0:00:16.1]} 62. Nxf5
{[%clk 0:00:22.4]} 62... Kg6 {[%clk 0:00:16.5]} 63. Nd6 {[%clk 0:00:22.8]} 63...
Kf6 {[%clk 0:00:15.2]} 64. Nxb7 {[%clk 0:00:23.2]} 64... Ke7 {[%clk 0:00:15.6]}
65. Nc5 {[%clk 0:00:23.5]} 65... Bb5 {[%clk 0:00:16.5]} 66. Ke5 {[%clk 0:00:24]}
66... Kd8 {[%clk 0:00:16.7]} 67. Kd6 {[%clk 0:00:24.4]} 67... Kc8 {[%clk
0:00:17.6]} 68. Ne6 {[%clk 0:00:23.8]} 68... Kb7 {[%clk 0:00:17.7]} 69. Kc5
{[%clk 0:00:24.2]} 69... Bf1 {[%clk 0:00:17.1]} 70. Nd8+ {[%clk 0:00:24.4]}
70... Kc7 {[%clk 0:00:17.4]} 71. Nc6 {[%clk 0:00:25.3]} 71... Kb7 {[%clk
0:00:18.3]} 72. Nd4 {[%clk 0:00:25.7]} 72... Bd3 {[%clk 0:00:17.8]} 73. Ne6
{[%clk 0:00:25.8]} 73... Bf1 {[%clk 0:00:17]} 74. Nd8+ {[%clk 0:00:25.9]} 74...
Kc7 {[%clk 0:00:17.4]} 75. Nc6 {[%clk 0:00:26.3]} 75... Be2 {[%clk 0:00:16]} 76.
Ne5 {[%clk 0:00:27.2]} 76... Bf1 {[%clk 0:00:15.9]} 77. Nc4 {[%clk 0:00:26.8]}
77... Be2 {[%clk 0:00:15.8]} 78. Nb6 {[%clk 0:00:26.9]} 78... Kb7 {[%clk
0:00:15.8]} 79. Nd5 {[%clk 0:00:25.8]} 79... Bf1 {[%clk 0:00:16.4]} 80. Nf4
{[%clk 0:00:25.9]} 80... Kc7 {[%clk 0:00:16.1]} 81. Ne6+ {[%clk 0:00:23.4]}
81... Kb7 {[%clk 0:00:16.4]} 1/2-1/2

[Event "*** Titled Tuesday Blitz"]
[Site "Chess.com"]
[Date "2020.04.14"]
[Round "9"]
[White "OhanyanEminChess"]
[Black "anushanlv"]
[Result "1/2-1/2"]
[WhiteElo "2544"]
[BlackElo "2216"]
[TimeControl "180+1"]
[EndTime "11:44:43 PDT"]
[Termination "Game drawn by stalemate"]

1. e4 {[%clk 0:03:00.9]} 1... c6 {[%clk 0:02:59]} 2. d4 {[%clk 0:03:00.4]} 2...
d5 {[%clk 0:02:59]} 3. Nc3 {[%clk 0:03:01]} 3... dxe4 {[%clk 0:02:58.9]} 4. Nxe4
{[%clk 0:03:01.9]} 4... Nf6 {[%clk 0:02:58.9]} 5. Nxf6+ {[%clk 0:03:02.5]} 5...
exf6 {[%clk 0:02:58.9]} 6. Bd3 {[%clk 0:03:02.9]} 6... Qxd4 {[%clk 0:02:55.8]}
7. Nf3 {[%clk 0:03:02.8]} 7... Qd8 {[%clk 0:02:54.5]} 8. O-O {[%clk 0:03:03.1]}
8... Be7 {[%clk 0:02:53.7]} 9. Re1 {[%clk 0:03:02]} 9... O-O {[%clk 0:02:53.8]}
10. Nd4 {[%clk 0:03:01.5]} 10... Re8 {[%clk 0:02:46.6]} 11. Bf4 {[%clk
0:02:48.4]} 11... Bf8 {[%clk 0:02:31.5]} 12. Rxe8 {[%clk 0:02:43]} 12... Qxe8
{[%clk 0:02:31.5]} 13. Qh5 {[%clk 0:02:40.7]} 13... g6 {[%clk 0:02:29.1]} 14.
Qh4 {[%clk 0:02:40.9]} 14... Bg7 {[%clk 0:02:24.9]} 15. Bh6 {[%clk 0:02:30.7]}
15... Nd7 {[%clk 0:02:23.2]} 16. Bxg7 {[%clk 0:02:28.2]} 16... Kxg7 {[%clk
0:02:23.2]} 17. f3 {[%clk 0:02:24.1]} 17... Qe3+ {[%clk 0:01:45.7]} 18. Kh1
{[%clk 0:02:20.9]} 18... Qh6 {[%clk 0:01:44.1]} 19. Qg3 {[%clk 0:02:18.1]} 19...
Ne5 {[%clk 0:01:42.9]} 20. Re1 {[%clk 0:02:15.3]} 20... Bd7 {[%clk 0:01:21.2]}
21. h3 {[%clk 0:02:11.1]} 21... Re8 {[%clk 0:01:13]} 22. Bf5 {[%clk 0:02:09.4]}
22... Kf8 {[%clk 0:00:32.2]} 23. Bxd7 {[%clk 0:02:08]} 23... Rd8 {[%clk
0:00:24.1]} 24. f4 {[%clk 0:00:55.8]} 24... Nxd7 {[%clk 0:00:19.4]} 25. Qa3+
{[%clk 0:00:54.9]} 25... c5 {[%clk 0:00:17.8]} 26. Qe3 {[%clk 0:00:44]} 26...
Kg8 {[%clk 0:00:12.7]} 27. Qe7 {[%clk 0:00:43.2]} 27... Qf8 {[%clk 0:00:12.5]}
28. Nb5 {[%clk 0:00:40.4]} 28... Qxe7 {[%clk 0:00:11.9]} 29. Rxe7 {[%clk
0:00:41.3]} 29... Kf8 {[%clk 0:00:12.6]} 30. Re3 {[%clk 0:00:41.9]} 30... a6
{[%clk 0:00:13.1]} 31. Nd6 {[%clk 0:00:41.4]} 31... b5 {[%clk 0:00:11.4]} 32.
Ra3 {[%clk 0:00:35.9]} 32... Nb8 {[%clk 0:00:11.4]} 33. Ne4 {[%clk 0:00:34.8]}
33... c4 {[%clk 0:00:11.2]} 34. Nxf6 {[%clk 0:00:34.4]} 34... Rd2 {[%clk
0:00:10.6]} 35. Rc3 {[%clk 0:00:33.1]} 35... Kg7 {[%clk 0:00:10.2]} 36. Ne4
{[%clk 0:00:33.3]} 36... Re2 {[%clk 0:00:10.9]} 37. Ng3 {[%clk 0:00:31.4]} 37...
Rd2 {[%clk 0:00:10.8]} 38. Ne4 {[%clk 0:00:31.2]} 38... Re2 {[%clk 0:00:11.1]}
39. Nc5 {[%clk 0:00:31.4]} 39... Rf2 {[%clk 0:00:10.4]} 40. a4 {[%clk
0:00:25.4]} 40... Rxf4 {[%clk 0:00:10.2]} 41. a5 {[%clk 0:00:24.7]} 41... Nc6
{[%clk 0:00:09.1]} 42. Ra3 {[%clk 0:00:22]} 42... Nb8 {[%clk 0:00:08.6]} 43. Re3
{[%clk 0:00:18.8]} 43... Rf5 {[%clk 0:00:08.6]} 44. Re8 {[%clk 0:00:10.5]} 44...
Rxc5 {[%clk 0:00:08.3]} 45. Rxb8 {[%clk 0:00:11.2]} 45... c3 {[%clk 0:00:08.7]}
46. b3 {[%clk 0:00:04.8]} 46... Rd5 {[%clk 0:00:08.3]} 47. Rb6 {[%clk
0:00:02.9]} 47... Rd2 {[%clk 0:00:08.6]} 48. Rxa6 {[%clk 0:00:02.6]} 48... Rxc2
{[%clk 0:00:09.2]} 49. Kh2 {[%clk 0:00:03.1]} 49... Ra2 {[%clk 0:00:09.5]} 50.
b4 {[%clk 0:00:02.5]} 50... Ra4 {[%clk 0:00:09.4]} 51. Rc6 {[%clk 0:00:01.9]}
51... Rxb4 {[%clk 0:00:10.2]} 52. Rxc3 {[%clk 0:00:02.3]} 52... Ra4 {[%clk
0:00:11.1]} 53. Rc5 {[%clk 0:00:02.7]} 53... Rxa5 {[%clk 0:00:11.8]} 54. Kg3
{[%clk 0:00:03.3]} 54... Ra3+ {[%clk 0:00:11.5]} 55. Kf4 {[%clk 0:00:02.1]}
55... Rb3 {[%clk 0:00:12.2]} 56. Rc6 {[%clk 0:00:01.8]} 56... h5 {[%clk
0:00:12.9]} 57. Rb6 {[%clk 0:00:01.9]} 57... Rb2 {[%clk 0:00:13.4]} 58. Kf3
{[%clk 0:00:01.5]} 58... b4 {[%clk 0:00:14.1]} 59. Kf4 {[%clk 0:00:01.8]} 59...
h4 {[%clk 0:00:14.6]} 60. Kf3 {[%clk 0:00:01.9]} 60... Rb1 {[%clk 0:00:14.9]}
61. Rb5 {[%clk 0:00:02.4]} 61... b3 {[%clk 0:00:15.1]} 62. Kg4 {[%clk
0:00:02.8]} 62... Rb2 {[%clk 0:00:15.3]} 63. Kxh4 {[%clk 0:00:02.5]} 63... Rxg2
{[%clk 0:00:15.3]} 64. Rxb3 {[%clk 0:00:03]} 64... Kh6 {[%clk 0:00:16.1]} 65.
Rb5 {[%clk 0:00:03.1]} 65... f6 {[%clk 0:00:15.5]} 66. Rh5+ {[%clk 0:00:02.4]}
66... Kg7 {[%clk 0:00:15.8]} 67. Ra5 {[%clk 0:00:03.3]} 67... f5 {[%clk
0:00:14.3]} 68. Ra7+ {[%clk 0:00:03.1]} 68... Kh6 {[%clk 0:00:13.5]} 69. Ra6
{[%clk 0:00:04]} 69... Rg1 {[%clk 0:00:13.2]} 70. Rxg6+ {[%clk 0:00:04.3]} 70...
Kxg6 {[%clk 0:00:11.9]} 1/2-1/2

[Event "*** Titled Tuesday Blitz"]
[Site "Chess.com"]
[Date "2020.04.14"]
[Round "9"]
[White "FROGGY64"]
[Black "english_player_89"]
[Result "0-1"]
[WhiteElo "2362"]
[BlackElo "2521"]
[TimeControl "180+1"]
[EndTime "11:44:47 PDT"]
[Termination "english_player_89 won by checkmate"]

1. d4 {[%clk 0:03:00.9]} 1... Nf6 {[%clk 0:02:58.3]} 2. Bg5 {[%clk 0:03:00.6]}
2... Ne4 {[%clk 0:02:58]} 3. Bf4 {[%clk 0:03:00.2]} 3... d5 {[%clk 0:02:58.4]}
4. e3 {[%clk 0:03:00.1]} 4... e6 {[%clk 0:02:58.6]} 5. Bd3 {[%clk 0:03:00.2]}
5... Bd6 {[%clk 0:02:58.3]} 6. Bxd6 {[%clk 0:02:58.9]} 6... cxd6 {[%clk
0:02:56.9]} 7. f3 {[%clk 0:02:59.5]} 7... Nf6 {[%clk 0:02:56.8]} 8. Nc3 {[%clk
0:02:59.4]} 8... b6 {[%clk 0:02:56.9]} 9. Nge2 {[%clk 0:02:59.2]} 9... Ba6
{[%clk 0:02:56.7]} 10. O-O {[%clk 0:02:57.2]} 10... O-O {[%clk 0:02:54.2]} 11.
e4 {[%clk 0:02:54.5]} 11... dxe4 {[%clk 0:02:47.2]} 12. fxe4 {[%clk 0:02:54]}
12... Bxd3 {[%clk 0:02:43.5]} 13. Qxd3 {[%clk 0:02:53.2]} 13... Nc6 {[%clk
0:02:42.5]} 14. Qg3 {[%clk 0:02:46.4]} 14... Rc8 {[%clk 0:02:22.3]} 15. Rad1
{[%clk 0:02:45.5]} 15... Qe7 {[%clk 0:02:10.7]} 16. e5 {[%clk 0:02:33.3]} 16...
dxe5 {[%clk 0:02:00]} 17. dxe5 {[%clk 0:02:16.8]} 17... Qc5+ {[%clk 0:01:57.5]}
18. Kh1 {[%clk 0:02:17.3]} 18... Qxe5 {[%clk 0:01:56.1]} 19. Qh4 {[%clk
0:02:16.6]} 19... Ne7 {[%clk 0:01:47.3]} 20. Nf4 {[%clk 0:02:13.6]} 20... Ng6
{[%clk 0:01:38.5]} 21. Nxg6 {[%clk 0:02:11.6]} 21... hxg6 {[%clk 0:01:36.8]} 22.
Rfe1 {[%clk 0:02:09.6]} 22... Qh5 {[%clk 0:01:31.2]} 23. Qg3 {[%clk 0:02:04.5]}
23... Rfd8 {[%clk 0:01:22]} 24. h3 {[%clk 0:02:04.6]} 24... Qf5 {[%clk
0:01:11.9]} 25. Rxd8+ {[%clk 0:01:56.5]} 25... Rxd8 {[%clk 0:01:11.3]} 26. Re2
{[%clk 0:01:39.8]} 26... Qc5 {[%clk 0:00:50.7]} 27. Qf3 {[%clk 0:01:32.7]} 27...
Qd6 {[%clk 0:00:40]} 28. a3 {[%clk 0:01:29.2]} 28... Rc8 {[%clk 0:00:33.5]} 29.
Re1 {[%clk 0:01:21.1]} 29... Qc6 {[%clk 0:00:31.7]} 30. Qe3 {[%clk 0:01:12.7]}
30... Qc5 {[%clk 0:00:19.2]} 31. Qf4 {[%clk 0:01:05.5]} 31... Qf5 {[%clk
0:00:18.9]} 32. Qg3 {[%clk 0:00:56.5]} 32... Qxc2 {[%clk 0:00:17.8]} 33. Re2
{[%clk 0:00:54.6]} 33... Qc1+ {[%clk 0:00:17]} 34. Kh2 {[%clk 0:00:54.6]} 34...
Nh5 {[%clk 0:00:16.6]} 35. Qf3 {[%clk 0:00:41.2]} 35... Qf4+ {[%clk 0:00:16.6]}
36. Qxf4 {[%clk 0:00:41.5]} 36... Nxf4 {[%clk 0:00:17.5]} 37. Rd2 {[%clk
0:00:42.1]} 37... Rc7 {[%clk 0:00:14.2]} 38. Kg3 {[%clk 0:00:42.3]} 38... Nh5+
{[%clk 0:00:13.9]} 39. Kf3 {[%clk 0:00:40.7]} 39... Nf6 {[%clk 0:00:14.8]} 40.
Rd8+ {[%clk 0:00:39.8]} 40... Kh7 {[%clk 0:00:14.1]} 41. g4 {[%clk 0:00:36.3]}
41... g5 {[%clk 0:00:14.4]} 42. Ke3 {[%clk 0:00:34.1]} 42... Kg6 {[%clk
0:00:14.7]} 43. Nb5 {[%clk 0:00:28.9]} 43... Rb7 {[%clk 0:00:13.1]} 44. Nd6
{[%clk 0:00:28.4]} 44... Rd7 {[%clk 0:00:13.2]} 45. Rxd7 {[%clk 0:00:25.3]}
45... Nxd7 {[%clk 0:00:14.1]} 46. Ke4 {[%clk 0:00:25.3]} 46... f5+ {[%clk
0:00:13.6]} 47. gxf5+ {[%clk 0:00:20.4]} 47... exf5+ {[%clk 0:00:14.5]} 48. Nxf5
{[%clk 0:00:19.9]} 48... Nc5+ {[%clk 0:00:14.8]} 49. Ke5 {[%clk 0:00:20.5]}
49... Nd3+ {[%clk 0:00:14.9]} 50. Ke6 {[%clk 0:00:19.2]} 50... Nxb2 {[%clk
0:00:14.6]} 51. Nd6 {[%clk 0:00:17]} 51... Kh5 {[%clk 0:00:13.1]} 52. Kf5 {[%clk
0:00:16.7]} 52... g6+ {[%clk 0:00:12.3]} 53. Kf6 {[%clk 0:00:16.5]} 53... a5
{[%clk 0:00:10.1]} 54. Nf7 {[%clk 0:00:12.3]} 54... Nc4 {[%clk 0:00:08.5]} 55.
Nxg5 {[%clk 0:00:11.5]} 55... Nxa3 {[%clk 0:00:08.7]} 56. Ne4 {[%clk 0:00:11.1]}
56... Nc4 {[%clk 0:00:08.6]} 57. Nc3 {[%clk 0:00:10.5]} 57... Nb2 {[%clk
0:00:07.6]} 58. Ke5 {[%clk 0:00:06.2]} 58... a4 {[%clk 0:00:07.9]} 59. Kd6
{[%clk 0:00:05.8]} 59... a3 {[%clk 0:00:08.3]} 60. Kc6 {[%clk 0:00:05.5]} 60...
Kh4 {[%clk 0:00:08.7]} 61. Kxb6 {[%clk 0:00:05.7]} 61... Kxh3 {[%clk 0:00:09.6]}
62. Kc5 {[%clk 0:00:05.5]} 62... g5 {[%clk 0:00:10.5]} 63. Kb4 {[%clk
0:00:05.8]} 63... a2 {[%clk 0:00:10]} 64. Nxa2 {[%clk 0:00:04.5]} 64... g4
{[%clk 0:00:10.9]} 65. Nc3 {[%clk 0:00:04.6]} 65... g3 {[%clk 0:00:11.2]} 66.
Ne4 {[%clk 0:00:04.3]} 66... Nd3+ {[%clk 0:00:11.2]} 67. Kc3 {[%clk 0:00:02]}
67... g2 {[%clk 0:00:11.8]} 68. Ng5+ {[%clk 0:00:01.5]} 68... Kg4 {[%clk
0:00:11.7]} 69. Kxd3 {[%clk 0:00:01.3]} 69... Kxg5 {[%clk 0:00:11.8]} 70. Ke2
{[%clk 0:00:02]} 70... g1=Q {[%clk 0:00:12.7]} 71. Kd2 {[%clk 0:00:02.9]} 71...
Qh2+ {[%clk 0:00:13.3]} 72. Kd3 {[%clk 0:00:03.8]} 72... Kf4 {[%clk 0:00:14]}
73. Kc4 {[%clk 0:00:04.7]} 73... Qd2 {[%clk 0:00:14.2]} 74. Kc5 {[%clk
0:00:04.4]} 74... Ke5 {[%clk 0:00:14.6]} 75. Kb5 {[%clk 0:00:05.3]} 75... Qc2
{[%clk 0:00:14.9]} 76. Kb6 {[%clk 0:00:06.2]} 76... Kd5 {[%clk 0:00:15.3]} 77.
Kb7 {[%clk 0:00:07.1]} 77... Qc6+ {[%clk 0:00:15.2]} 78. Kb8 {[%clk 0:00:07.2]}
78... Qd7 {[%clk 0:00:15.1]} 79. Ka8 {[%clk 0:00:07.2]} 79... Kc6 {[%clk
0:00:16]} 80. Kb8 {[%clk 0:00:08.1]} 80... Qb7# {[%clk 0:00:16.6]} 0-1